bitfinex/quotes_BTCUSD_20220212
["timestamp","ask_amount","ask_price","bid_price","bid_amount"]
[1644674533965,0.70800692,42211.0,42210.0,0.00932675]
[1644674534169,1.09141392,42211.0,42210.0,0.00932675]
[1644674534367,1.39350226,42211.0,42210.0,0.0117048]
[1644674534566,0.77221605,42211.0,42210.0,0.1673488]
[1644674534769,0.71294605,42211.0,42210.0,0.0117048]
[1644674534967,0.61294605,42211.0,42210.0,0.0117048]
[1644674535368,0.71285002,42211.0,42210.0,0.01408285]
[1644674535567,0.76319089,42211.0,42210.0,0.01408285]
[1644674535769,0.90189898,42211.0,42210.0,0.01408285]
[1644674535971,0.99060159,42211.0,42210.0,0.01408285]
[1644674536368,0.99060159,42211.0,42210.0,0.0164609]
[1644674536772,1.30492532,42211.0,42210.0,0.0164609]
[1644674536970,1.30492532,42211.0,42210.0,0.01408285]
[1644674537448,1.30492532,42211.0,42210.0,0.00908285]
[1644674537449,0.97151832,42211.0,42210.0,0.00908285]
[1644674537847,1.30492532,42211.0,42210.0,0.00908285]
[1644674538049,1.30254727,42211.0,42210.0,0.00908285]
[1644674539248,1.29254727,42211.0,42210.0,0.00908285]
[1644674539647,1.26254727,42211.0,42210.0,0.00908285]
[1644674539849,0.75,42210.0,42208.0,0.00814252]
[1644674540049,1.35599885,42210.0,42209.0,0.00371297]
[1644674540247,1.50599885,42210.0,42209.0,0.00371297]
[1644674540448,1.16701248,42210.0,42209.0,0.00371297]
[1644674540648,1.50041948,42210.0,42209.0,0.00371297]
[1644674540848,1.16701248,42210.0,42209.0,0.00371297]
[1644674541049,1.54771948,42210.0,42209.0,0.00371297]
[1644674541280,1.21431248,42210.0,42209.0,0.00371297]
[1644674542376,1.54771948,42210.0,42209.0,0.00371297]
[1644674543076,1.21431248,42210.0,42209.0,0.00371297]
[1644674543276,1.54771948,42210.0,42209.0,0.00371297]
[1644674543476,1.21431248,42210.0,42209.0,0.00371297]
[1644674544076,1.54771948,42210.0,42209.0,0.00371297]
[1644674544479,1.54568385,42210.0,42209.0,0.00371297]
[1644674544923,1.21227685,42210.0,42209.0,0.00371297]
[1644674545324,0.75,42209.0,42208.0,0.00185549]
[1644674545525,0.95503748,42209.0,42208.0,0.00185549]
[1644674545726,1.10503748,42209.0,42208.0,0.00185549]
[1644674546324,1.10503748,42209.0,42193.0,0.24705538]
[1644674546325,0.75,42208.0,42193.0,0.24705538]
[1644674546528,0.20162034,42197.0,42192.0,0.30646788]
[1644674546726,0.20162034,42197.0,42193.0,0.155712]
[1644674548328,0.20162034,42197.0,42193.0,0.15615549]
[1644674549196,0.20162034,42197.0,42193.0,0.155712]
[1644674549389,0.43580598,42201.0,42193.0,0.155712]
[1644674549390,0.20162034,42198.0,42193.0,0.15615549]
[1644674549790,0.20162034,42199.0,42193.0,0.15615549]
[1644674550494,0.19162034,42199.0,42193.0,0.155712]
[1644674550691,0.19162034,42199.0,42194.0,0.00044348]
[1644674551795,0.19162034,42199.0,42194.0,0.00044268]
[1644674552829,0.19162034,42199.0,42193.0,0.155712]
[1644674553030,0.19162034,42199.0,42194.0,0.00044268]
[1644674553631,0.25202543,42201.0,42194.0,0.00044268]
[1644674554032,0.25202543,42201.0,42193.0,0.155712]
[1644674554231,0.25202543,42201.0,42195.0,0.00044268]
[1644674555232,0.25202543,42201.0,42193.0,0.155712]
[1644674555433,0.25202543,42201.0,42196.0,0.00044279]
[1644674556476,0.25202543,42201.0,42193.0,0.155712]
[1644674556678,0.25202543,42201.0,42196.0,0.00044279]
[1644674556875,0.25202543,42201.0,42189.0,0.146186]
[1644674557079,0.25202543,42201.0,42190.0,0.28615485]
[1644674557278,0.25202543,42202.0,42191.0,0.146177]
[1644674557480,0.25202543,42202.0,42191.0,0.243477]
[1644674557677,0.1196,42213.0,42192.0,0.14617]
[1644674557678,0.55445594,42206.0,42192.0,0.14617]
[1644674557880,0.25202543,42205.0,42194.0,0.146161]
[1644674558177,0.25202543,42204.0,42196.0,0.146153]
[1644674558380,0.25202543,42203.0,42196.0,0.146153]
[1644674558979,0.25202543,42202.0,42196.0,0.146153]
[1644674559178,0.25184318,42202.0,42196.0,0.146153]
[1644674559380,0.25184318,42202.0,42197.0,0.14615]
[1644674559587,0.25184318,42202.0,42198.0,0.146146]
[1644674559782,0.25184318,42202.0,42199.0,0.146142]
[1644674560032,0.25184318,42202.0,42195.0,0.146156]
[1644674560631,0.20161411,42199.0,42195.0,0.146156]
[1644674561631,0.20161411,42198.0,42195.0,0.146156]
[1644674561834,0.20161411,42199.0,42195.0,0.146156]
[1644674562931,0.20161411,42200.0,42195.0,0.146156]
[1644674563533,0.00044309,42201.0,42194.0,0.00044317]
[1644674563534,0.20954107,42198.0,42194.0,0.00044317]
[1644674563787,0.07682648,42196.0,42195.0,0.14616]
[1644674563986,0.27847154,42196.0,42195.0,0.14616]
[1644674564188,0.20164506,42196.0,42195.0,0.14616]
[1644674564386,0.20954107,42198.0,42195.0,0.14616]
[1644674564387,0.20164506,42197.0,42195.0,0.14616]
[1644674564587,0.20164506,42198.0,42195.0,0.14616]
[1644674564792,0.20164506,42199.0,42195.0,0.14616]
[1644674564987,0.20164506,42200.0,42195.0,0.14616]
[1644674565187,0.20164506,42199.0,42195.0,0.14616]
[1644674565487,0.20164506,42197.0,42195.0,0.14616]
[1644674565685,0.20164506,42198.0,42195.0,0.14616]
[1644674565888,0.44475242,42199.0,42195.0,0.14616]
[1644674566491,0.20164506,42196.0,42195.0,0.14616]
[1644674567530,0.20164506,42196.0,42187.0,0.20161411]
[1644674567531,0.20164506,42197.0,42194.0,0.146165]
[1644674568428,0.20164506,42196.0,42194.0,0.146165]
[1644674568629,0.20164506,42197.0,42194.0,0.146165]
[1644674569729,0.20164506,42198.0,42194.0,0.146165]
[1644674570928,0.42244025,42197.0,42194.0,0.146165]
[1644674571188,0.42244025,42197.0,42194.0,0.14660822]
[1644674571380,0.20164506,42197.0,42194.0,0.14660822]
[1644674571581,0.26965229,42196.0,42194.0,0.14660822]
[1644674571782,0.25845636,42195.0,42194.0,0.14660822]
[1644674571982,0.51051203,42195.0,42194.0,0.14660822]
[1644674572182,0.51051203,42195.0,42194.0,0.146165]
[1644674572383,0.51051203,42195.0,42193.0,0.146171]
[1644674572786,0.25845636,42195.0,42193.0,0.146171]
[1644674572986,0.20167549,42195.0,42193.0,0.146171]
[1644674573184,0.20167549,42196.0,42193.0,0.146171]
[1644674573883,0.20167549,42194.0,42193.0,0.146171]
[1644674574930,0.20167549,42194.0,42192.0,0.146176]
[1644674576334,0.20167549,42194.0,42192.0,0.08788366]
[1644674576735,0.25205567,42195.0,42192.0,0.08788366]
[1644674576935,0.2017119,42193.0,42192.0,0.08788366]
[1644674578038,0.2017119,42194.0,42192.0,0.08788366]
[1644674578435,0.2017119,42194.0,42191.0,0.087885]
[1644674578694,0.2017119,42193.0,42191.0,0.087885]
[1644674579692,0.2017119,42192.0,42191.0,0.087885]
[1644674580598,0.45376757,42194.0,42191.0,0.087885]
[1644674580795,0.2017119,42194.0,42191.0,0.087885]
[1644674580994,0.2017119,42194.0,42192.0,0.087884]
[1644674581196,0.2017119,42194.0,42193.0,0.087881]
[1644674581394,0.2017119,42194.0,42190.0,0.087887]
[1644674581993,0.2017119,42194.0,42190.0,0.0883305]
[1644674583029,0.2017119,42194.0,42190.0,0.087887]
[1644674583233,0.2017119,42194.0,42190.0,0.0883305]
[1644674584132,0.2017119,42194.0,42190.0,0.087887]
[1644674584332,0.2017119,42194.0,42190.0,0.08833041]
[1644674585333,0.2017119,42194.0,42190.0,0.087887]
[1644674585533,0.2017119,42194.0,42190.0,0.08833041]
[1644674586197,0.2017119,42196.0,42193.0,0.087879]
[1644674586391,0.3028738,42201.0,42193.0,0.087879]
[1644674586392,0.2017119,42197.0,42193.0,0.087879]
[1644674586593,0.2017119,42198.0,42193.0,0.28958546]
[1644674587193,0.2017119,42197.0,42193.0,0.087879]
[1644674587394,0.2017119,42197.0,42193.0,0.137879]
[1644674587793,0.2017119,42197.0,42193.0,0.087879]
[1644674587996,0.26132101,42204.0,42193.0,0.29002885]
[1644674587997,0.2017119,42199.0,42193.0,0.29002885]
[1644674588195,0.2017119,42198.0,42193.0,0.29002885]
[1644674588596,0.2017119,42199.0,42193.0,0.29002885]
[1644674589000,0.2017119,42199.0,42193.0,0.28958546]
[1644674589199,0.2017119,42199.0,42194.0,0.00044339]
[1644674589398,0.2017119,42199.0,42195.0,0.087872]
[1644674590632,0.2017119,42200.0,42195.0,0.087872]
[1644674592135,0.20215523,42201.0,42197.0,0.087865]
[1644674592337,0.20215523,42201.0,42200.0,0.087856]
[1644674592338,0.00044333,42201.0,42200.0,0.087856]
[1644674592537,0.2017119,42204.0,42200.0,0.087856]
[1644674592736,0.3,42207.0,42200.0,0.187856]
[1644674592737,0.2017119,42205.0,42200.0,0.187856]
[1644674592937,0.00044334,42201.0,42200.0,0.187856]
[1644674593783,0.2017119,42205.0,42201.0,0.08785]
[1644674593983,0.3,42207.0,42201.0,0.08785]
[1644674593984,0.00044334,42203.0,42201.0,0.08785]
[1644674594486,0.00044334,42203.0,42202.0,0.0973]
[1644674594683,0.00044334,42203.0,42202.0,0.271748]
[1644674594885,0.00177309,42209.0,42205.0,0.15]
[1644674595084,0.3,42212.0,42205.0,0.15]
[1644674595085,0.00026075,42210.0,42207.0,0.109235]
[1644674595287,0.00026075,42211.0,42209.0,0.19903797]
[1644674595484,0.00026075,42213.0,42210.0,0.13512]
[1644674595685,0.2017119,42214.0,42210.0,0.13512]
[1644674595686,0.2017119,42211.0,42210.0,0.13512]
[1644674595885,0.38541387,42216.0,42210.0,0.13512]
[1644674595886,0.25205567,42213.0,42210.0,0.13512]
[1644674596087,0.25231642,42213.0,42210.0,0.13512]
[1644674596288,0.25205567,42213.0,42210.0,0.13512]
[1644674596484,0.20155991,42211.0,42210.0,0.13512]
[1644674596684,0.00026075,42214.0,42210.0,0.13512]
[1644674596685,0.20155991,42212.0,42210.0,0.13512]
[1644674597085,0.00026075,42213.0,42210.0,0.13512]
[1644674597286,0.20155991,42214.0,42210.0,0.13512]
[1644674597535,0.20182066,42214.0,42210.0,0.13512]
[1644674597736,0.00027237,42214.0,42210.0,0.13512]
[1644674598135,0.00053312,42214.0,42210.0,0.13512]
[1644674598438,0.00027237,42214.0,42210.0,0.13512]
[1644674598738,0.20182066,42214.0,42210.0,0.13512]
[1644674598934,0.20182066,42214.0,42210.0,0.08782]
[1644674598935,0.0004822,42214.0,42210.0,0.08782]
[1644674599135,0.0004822,42214.0,42210.0,0.18782]
[1644674599336,0.00074295,42214.0,42210.0,0.1]
[1644674599538,0.0004822,42214.0,42211.0,0.087816]
[1644674599739,0.0004822,42214.0,42211.0,0.137816]
[1644674599937,0.00026075,42217.0,42211.0,0.05]
[1644674600137,0.20155991,42218.0,42211.0,0.05]
[1644674600138,0.0004822,42215.0,42212.0,0.087811]
[1644674601189,0.00026075,42217.0,42212.0,0.087811]
[1644674601492,0.00074295,42216.0,42212.0,0.087811]
[1644674601683,0.0004822,42216.0,42212.0,0.087811]
[1644674601885,0.0004822,42216.0,42214.0,0.087806]
[1644674602084,0.00074295,42216.0,42215.0,0.0473]
[1644674602386,0.00026075,42217.0,42215.0,0.135102]
[1644674602685,0.00048219,42217.0,42215.0,0.135102]
[1644674603085,0.00048219,42217.0,42215.0,0.185102]
[1644674603385,0.00026075,42218.0,42216.0,0.087799]
[1644674603585,0.01,42219.0,42216.0,0.135099]
[1644674603784,0.00048267,42218.0,42216.0,0.135099]
[1644674604586,0.01026075,42219.0,42216.0,0.135099]
[1644674604784,0.01,42219.0,42216.0,0.135099]
[1644674605035,0.01048266,42219.0,42216.0,0.135099]
[1644674605236,0.01048266,42219.0,42218.0,0.087792]
[1644674605436,0.01048266,42219.0,42218.0,0.135092]
[1644674605837,0.01,42219.0,42218.0,0.135092]
[1644674606238,0.00048266,42221.0,42219.0,0.35]
[1644674606537,0.00074384,42221.0,42220.0,0.0473]
[1644674606740,0.00861504,42219.0,42211.0,0.31714206]
[1644674606939,0.00861504,42219.0,42212.0,0.5473]
[1644674607140,0.00861504,42219.0,42213.0,0.059228]
[1644674607338,0.00048267,42217.0,42214.0,0.39822273]
[1644674607539,0.00048267,42217.0,42214.0,0.0973]
[1644674607738,0.00048267,42217.0,42214.0,0.1973]
[1644674608138,0.00048267,42217.0,42214.0,0.2473]
[1644674608339,0.00026118,42218.0,42214.0,0.2473]
[1644674608539,0.00048267,42218.0,42214.0,0.2473]
[1644674608783,0.00048267,42218.0,42214.0,0.1473]
[1644674608784,0.00074385,42218.0,42214.0,0.1473]
[1644674609082,0.00435889,42219.0,42215.0,0.75]
[1644674609289,0.00435889,42219.0,42216.0,0.0473]
[1644674609682,0.00435889,42219.0,42216.0,0.0973]
[1644674609883,0.00435889,42219.0,42216.0,0.0473]
[1644674610082,0.00435889,42219.0,42217.0,0.30631699]
[1644674610283,0.00435889,42219.0,42218.0,0.0473]
[1644674610484,0.00435889,42219.0,42218.0,0.35153821]
[1644674610884,0.00435889,42219.0,42218.0,0.45153821]
[1644674611083,0.00435889,42219.0,42218.0,0.70156539]
[1644674612286,0.19063812,42232.0,42219.0,0.65]
[1644674612536,0.1139,42234.0,42220.0,0.0473]
[1644674612737,0.36279133,42234.0,42220.0,0.0473]
[1644674613237,0.000485,42229.0,42220.0,0.0473]
[1644674614235,0.44786291,42234.0,42220.0,0.0473]
[1644674614439,0.44786291,42234.0,42221.0,0.29489124]
[1644674614636,0.00044501,42227.0,42222.0,0.0473]
[1644674615540,0.44786291,42234.0,42222.0,0.0473]
[1644674615738,0.00044501,42227.0,42222.0,0.0473]
[1644674616588,0.00177976,42233.0,42222.0,0.0473]
[1644674616787,0.44786291,42234.0,42222.0,0.0473]
[1644674616992,0.00044501,42227.0,42222.0,0.0473]
[1644674617789,0.44786291,42234.0,42222.0,0.0473]
[1644674618189,0.00044501,42227.0,42222.0,0.0473]
[1644674618989,0.44786291,42234.0,42222.0,0.0473]
[1644674619190,0.36279133,42234.0,42222.0,0.0473]
[1644674619492,0.00044769,42227.0,42222.0,0.0473]
[1644674620236,0.36279133,42234.0,42222.0,0.0473]
[1644674620435,0.00023436,42227.0,42222.0,0.0473]
[1644674620636,0.00023436,42227.0,42222.0,0.0423]
[1644674622637,0.00026169,42232.0,42222.0,0.0423]
[1644674622838,0.00026169,42233.0,42222.0,0.0423]
[1644674623039,0.00046876,42227.0,42222.0,0.0423]
[1644674623892,0.00026169,42232.0,42222.0,0.0423]
[1644674624093,0.00046876,42227.0,42222.0,0.0423]
[1644674624699,0.20113858,42233.0,42222.0,0.0423]
[1644674625297,0.20113858,42233.0,42219.0,0.38421501]
[1644674625499,0.20113858,42233.0,42219.0,0.28421501]
[1644674625695,0.20113858,42233.0,42219.0,0.38421501]
[1644674625898,0.31264379,42234.0,42219.0,0.38421501]
[1644674626297,0.20113858,42233.0,42219.0,0.38421501]
[1644674626799,0.20113858,42233.0,42219.0,0.28421501]
[1644674626800,0.20113858,42232.0,42219.0,0.28421501]
[1644674626997,0.20113858,42232.0,42219.0,0.38421501]
[1644674627200,0.00026223,42233.0,42219.0,0.38421501]
[1644674627201,0.20140081,42233.0,42219.0,0.38421501]
[1644674627437,0.20113858,42233.0,42219.0,0.38421501]
[1644674627637,0.20113858,42233.0,42224.0,0.00044737]
[1644674628036,0.20113858,42232.0,42224.0,0.00044737]
[1644674628435,0.57774078,42235.0,42224.0,0.00044737]
[1644674628436,0.20140081,42233.0,42224.0,0.00044737]
[1644674628637,0.20113858,42233.0,42220.0,0.6]
[1644674628836,0.20113858,42233.0,42226.0,0.00044736]
[1644674629036,0.00026223,42234.0,42220.0,0.6]
[1644674629037,0.00049581,42225.0,42220.0,0.6]
[1644674631387,0.00049581,42225.0,42221.0,0.0473]
[1644674632590,0.00049581,42225.0,42221.0,0.04751707]
[1644674633493,0.00049581,42225.0,42221.0,0.0473]
[1644674633693,0.00049581,42225.0,42221.0,0.04778701]
[1644674634690,0.00049581,42225.0,42222.0,0.5]
[1644674634939,0.00049581,42225.0,42223.0,0.0473]
[1644674635136,0.00049581,42225.0,42223.0,0.0423]
[1644674635336,0.00049581,42225.0,42223.0,0.32707476]
[1644674635537,0.00049581,42225.0,42224.0,0.29724709]
[1644674635737,0.00049581,42225.0,42224.0,0.34454709]
[1644674636138,0.00049581,42225.0,42224.0,0.84454709]
[1644674636538,0.00049581,42225.0,42224.0,0.30686407]
[1644674637238,0.00049581,42225.0,42223.0,0.00610525]
[1644674637545,0.00049581,42225.0,42224.0,0.0473]
[1644674638789,0.00049581,42225.0,42224.0,0.14067307]
[1644674639089,0.00049581,42225.0,42224.0,0.19067307]
[1644674639488,0.00049581,42225.0,42224.0,0.6473]
[1644674639888,0.00049581,42225.0,42224.0,0.7473]
[1644674640288,0.00049581,42225.0,42224.0,0.7919309]
[1644674641088,0.00049581,42225.0,42224.0,0.7473]
[1644674643640,0.00049581,42225.0,42224.0,0.6473]
[1644674643844,0.00049581,42225.0,42224.0,0.5473]
[1644674644046,0.00049581,42225.0,42224.0,0.5]
[1644674645444,0.00049581,42225.0,42217.0,0.3782]
[1644674645644,0.00049581,42225.0,42222.0,0.00021676]
[1644674646694,0.00049581,42225.0,42219.0,0.6]
[1644674646893,0.00049581,42225.0,42221.0,0.00048758]
[1644674647509,0.00049581,42225.0,42221.0,0.04778758]
[1644674647897,0.25075804,42230.0,42222.0,0.55]
[1644674648095,0.00026279,42227.0,42223.0,0.0473]
[1644674648298,0.00026279,42230.0,42223.0,0.0473]
[1644674648594,0.20140137,42231.0,42223.0,0.0473]
[1644674648796,0.20140137,42231.0,42221.0,0.00048758]
[1644674648996,0.20140137,42231.0,42222.0,0.0473]
[1644674649399,0.20113858,42231.0,42224.0,0.00048756]
[1644674649598,0.49834764,42230.0,42224.0,0.00048756]
[1644674649800,0.20140137,42230.0,42224.0,0.00048756]
[1644674650037,0.20113858,42229.0,42224.0,0.00048756]
[1644674650442,0.20113858,42229.0,42223.0,0.1]
[1644674650639,0.20113858,42229.0,42224.0,0.00048757]
[1644674651437,0.20140137,42229.0,42224.0,0.00048757]
[1644674651737,0.20113858,42229.0,42224.0,0.00048757]
[1644674652539,0.20140137,42230.0,42224.0,0.00048757]
[1644674652838,0.20113858,42230.0,42220.0,0.49448014]
[1644674653042,0.20113858,42230.0,42224.0,0.00048757]
[1644674653043,0.082012,42229.0,42224.0,0.00048757]
[1644674653241,0.20113858,42228.0,42224.0,0.00048757]
[1644674653901,0.20113858,42228.0,42217.0,0.106521]
[1644674654102,0.20113858,42228.0,42224.0,0.00048756]
[1644674655102,0.20113858,42228.0,42217.0,0.106521]
[1644674655303,0.20113858,42227.0,42224.0,0.00048756]
[1644674656307,0.20113858,42227.0,42217.0,0.156521]
[1644674656506,0.20113858,42227.0,42223.0,0.00048757]
[1644674657541,0.20113858,42227.0,42217.0,0.206521]
[1644674657741,0.20140137,42227.0,42223.0,0.00048757]
[1644674658042,0.20140137,42228.0,42223.0,0.00048757]
[1644674658244,0.20113858,42228.0,42223.0,0.00048757]
[1644674658442,0.00026279,42229.0,42223.0,0.00048757]
[1644674658443,0.20113858,42227.0,42223.0,0.00048757]
[1644674658846,0.20113858,42226.0,42217.0,0.1473]
[1644674659045,0.18336966,42230.0,42223.0,0.00044756]
[1644674659046,0.45867255,42225.0,42223.0,0.00044756]
[1644674659246,0.26259315,42224.0,42223.0,0.00044756]
[1644674659444,0.48677829,42224.0,42223.0,0.00044756]
[1644674659948,0.48677829,42224.0,42215.0,0.5]
[1644674660145,0.48677829,42224.0,42213.0,0.18817518]
[1644674660146,0.19259507,42217.0,42213.0,0.18817518]
[1644674660346,0.19259507,42217.0,42210.0,0.18817518]
[1644674660548,0.19259507,42217.0,42211.0,0.5]
[1644674661196,0.25818173,42216.0,42210.0,0.18817518]
[1644674661492,0.25818173,42216.0,42212.0,0.00044762]
[1644674661989,0.19259507,42217.0,42212.0,0.00044762]
[1644674662392,0.46930161,42221.0,42210.0,0.25191412]
[1644674662593,0.46930161,42221.0,42212.0,0.00044762]
[1644674662594,0.06309517,42217.0,42212.0,0.00044762]
[1644674662793,0.06309517,42217.0,42212.0,0.00034562]
[1644674662794,0.05,42215.0,42212.0,0.00034562]
[1644674662995,0.20152801,42213.0,42212.0,0.00034562]
[1644674663193,0.00040175,42211.0,42200.0,0.5]
[1644674663395,0.05,42209.0,42196.0,0.21509555]
[1644674663593,0.05,42209.0,42194.0,0.18825079]
[1644674663594,0.21923182,42204.0,42194.0,0.18825079]
[1644674663790,0.21923182,42204.0,42193.0,0.49064841]
[1644674663992,0.21923182,42204.0,42194.0,0.30221218]
[1644674664197,0.3,42203.0,42193.0,0.30239762]
[1644674664394,0.3,42203.0,42192.0,0.03018544]
[1644674664594,0.39553,42203.0,42192.0,0.03]
[1644674665457,0.430711,42202.0,42192.0,0.03]
[1644674665652,0.059278,42200.0,42192.0,0.03]
[1644674665849,0.59553,42203.0,42192.0,0.03]
[1644674665850,0.3,42203.0,42192.0,0.03]
[1644674666056,0.0473,42206.0,42192.0,0.03]
[1644674666250,0.0473,42206.0,42194.0,0.00021583]
[1644674666850,0.26226324,42200.0,42194.0,0.00021583]
[1644674667248,0.26226324,42200.0,42193.0,0.00018544]
[1644674667456,0.26226324,42200.0,42195.0,0.00048723]
[1644674668452,0.26226324,42200.0,42193.0,0.00018544]
[1644674668699,0.26226324,42200.0,42195.0,0.00048723]
[1644674668891,0.26226324,42200.0,42193.0,0.00018544]
[1644674668892,0.00097446,42194.0,42193.0,0.00018544]
[1644674669090,0.00097446,42194.0,42192.0,0.03018544]
[1644674669291,0.00097446,42194.0,42192.0,0.03]
[1644674676397,0.06025846,42194.0,42192.0,0.03]
[1644674676594,0.31182745,42193.0,42192.0,0.03]
[1644674676795,0.06025846,42194.0,42192.0,0.03]
[1644674677094,0.22310071,42193.0,42192.0,0.03]
[1644674677293,0.24773242,42193.0,42192.0,0.03]
[1644674679601,0.06025846,42194.0,42192.0,0.03]
[1644674679602,0.00097446,42194.0,42192.0,0.03]
[1644674689143,0.00087506,42194.0,42192.0,0.03]
[1644674708095,0.00087506,42194.0,42192.0,0.33177952]
[1644674708298,0.32041941,42202.0,42193.0,0.35]
[1644674708299,0.31876394,42202.0,42193.0,0.35]
[1644674708697,0.11724453,42202.0,42193.0,0.35]
[1644674709099,0.11724453,42202.0,42194.0,0.0473]
[1644674709300,0.68833051,42208.0,42196.0,0.30177952]
[1644674709301,0.20151941,42207.0,42196.0,0.30177952]
[1644674709497,0.00045125,42206.0,42198.0,0.30177952]
[1644674709697,0.00045125,42206.0,42199.0,0.0473]
[1644674709938,0.00045125,42206.0,42197.0,0.36102752]
[1644674709939,0.00045125,42206.0,42200.0,0.0473]
[1644674710144,0.00045125,42206.0,42201.0,0.0473]
[1644674710340,0.00045125,42206.0,42197.0,0.30177952]
[1644674710341,0.14189999,42200.0,42197.0,0.30177952]
[1644674710543,0.14189999,42200.0,42198.0,0.0473]
[1644674710741,0.14189999,42200.0,42199.0,0.0473]
[1644674711342,0.14093432,42200.0,42199.0,0.0473]
[1644674712145,0.1405309,42200.0,42199.0,0.3553586]
[1644674712344,0.1405309,42200.0,42199.0,0.4553586]
[1644674712942,0.1405309,42200.0,42199.0,0.5553586]
[1644674717297,0.1405309,42200.0,42199.0,0.65433159]
[1644674717547,0.1405309,42200.0,42199.0,0.6053586]
[1644674717746,0.1405309,42200.0,42199.0,1.1966586]
[1644674718749,0.1405309,42200.0,42199.0,1.3382586]
[1644674718948,0.09468612,42200.0,42199.0,1.3382586]
[1644674719448,0.09468612,42200.0,42199.0,1.54253946]
[1644674720650,0.09468612,42200.0,42199.0,1.66100346]
[1644674724096,0.09468612,42200.0,42199.0,1.54253946]
[1644674725341,0.09468612,42200.0,42199.0,1.23338086]
[1644674726042,0.00040175,42211.0,42200.0,0.75610746]
[1644674726341,0.00027255,42206.0,42205.0,0.059235]
[1644674726540,0.00027255,42206.0,42205.0,0.106535]
[1644674726743,0.00027255,42206.0,42205.0,0.156535]
[1644674727341,0.00040175,42211.0,42205.0,0.206535]
[1644674727545,0.00027258,42208.0,42205.0,0.206535]
[1644674727941,0.00027258,42208.0,42206.0,0.29190975]
[1644674728142,0.00027258,42208.0,42207.0,0.0473]
[1644674728342,0.00027258,42208.0,42207.0,0.09087685]
[1644674728546,0.00040175,42211.0,42207.0,0.14087685]
[1644674728796,0.00048723,42210.0,42207.0,0.19087685]
[1644674729795,0.00040175,42211.0,42207.0,0.19087685]
[1644674730194,0.00040175,42211.0,42207.0,0.1473]
[1644674732298,0.0006753,42211.0,42207.0,0.1473]
[1644674732945,0.0006753,42211.0,42207.0,0.1]
[1644674733148,0.0006753,42211.0,42207.0,0.05]
[1644674733343,0.00040175,42211.0,42207.0,0.05]
[1644674733750,0.00088999,42211.0,42201.0,0.1208]
[1644674734546,0.00040175,42211.0,42199.0,0.9205]
[1644674734944,0.00048825,42208.0,42199.0,0.9205]
[1644674735143,0.00048825,42208.0,42199.0,0.5601]
[1644674735744,0.27585034,42209.0,42199.0,0.5601]
[1644674736202,0.00048826,42206.0,42199.0,0.5601]
[1644674736402,0.21085149,42205.0,42195.0,0.7185]
[1644674736598,0.21085149,42205.0,42195.0,0.6685]
[1644674736800,0.21085149,42205.0,42195.0,0.5523]
[1644674737198,0.21085149,42205.0,42195.0,0.505]
[1644674737598,0.21085149,42205.0,42195.0,0.605]
[1644674737799,0.21085149,42205.0,42195.0,0.705]
[1644674738799,0.00048824,42206.0,42195.0,0.705]
[1644674739401,0.1223,42208.0,42195.0,0.705]
[1644674739603,0.00048824,42206.0,42195.0,0.705]
[1644674739802,0.00048824,42206.0,42195.0,0.9643973]
[1644674740642,0.1223,42208.0,42195.0,0.705]
[1644674740842,0.00048824,42206.0,42195.0,0.705]
[1644674741843,0.1223,42208.0,42195.0,0.705]
[1644674742046,0.00048824,42206.0,42195.0,0.705]
[1644674743047,0.1223,42208.0,42195.0,0.705]
[1644674743345,0.00048824,42206.0,42195.0,0.705]
[1644674744196,0.1223,42208.0,42195.0,0.705]
[1644674744394,0.00048824,42206.0,42195.0,0.705]
[1644674745296,0.1223,42208.0,42195.0,0.705]
[1644674745697,0.00048824,42206.0,42195.0,0.705]
[1644674746497,0.1223,42208.0,42195.0,0.705]
[1644674746705,0.1223,42208.0,42206.0,9.056e-05]
[1644674751701,0.12218928,42208.0,42206.0,9.056e-05]
[1644674753097,0.12218928,42208.0,42196.0,0.29405347]
[1644674754099,0.00048825,42206.0,42196.0,0.29405347]
[1644674754942,0.25873197,42206.0,42196.0,0.29405347]
[1644674755145,0.25873197,42206.0,42195.0,0.705]
[1644674755344,0.25922021,42206.0,42195.0,0.705]
[1644674756145,0.25873197,42206.0,42195.0,0.705]
[1644674756345,0.25974544,42199.0,42195.0,0.505]
[1644674756547,0.25974544,42199.0,42193.0,0.00048839]
[1644674757347,0.21691811,42196.0,42192.0,0.03]
[1644674757647,0.21691811,42196.0,42193.0,0.00048837]
[1644674758546,0.21691811,42196.0,42192.0,0.03]
[1644674758802,0.21691811,42196.0,42192.0,0.03048836]
[1644674759005,0.28886055,42196.0,42192.0,0.03048836]
[1644674759707,0.07194244,42196.0,42192.0,0.03048836]
[1644674759904,0.07194244,42196.0,42192.0,0.03]
[1644674762205,0.55554421,42198.0,42192.0,0.03]
[1644674762457,0.44626421,42198.0,42192.0,0.03]
[1644674762654,0.25974544,42199.0,42192.0,0.03]
[1644674763352,0.30974544,42199.0,42192.0,0.03]
[1644674763554,0.25974544,42199.0,42193.0,0.00048788]
[1644674763955,0.39671769,42199.0,42193.0,0.00048788]
[1644674764157,0.25974544,42199.0,42193.0,0.00048788]
[1644674764558,0.25094231,42200.0,42193.0,0.00048788]
[1644674765359,0.20094231,42200.0,42193.0,0.00048788]
[1644674765760,0.20094231,42200.0,42192.0,0.03]
[1644674766059,0.20094231,42200.0,42193.0,0.00048788]
[1644674767096,0.20094231,42200.0,42192.0,0.03018544]
[1644674767296,0.20094231,42200.0,42193.0,0.00048788]
[1644674767998,0.19978898,42202.0,42193.0,0.00048788]
[1644674768197,0.19978898,42202.0,42192.0,0.03018544]
[1644674768500,0.19978898,42202.0,42193.0,0.00048788]
[1644674769097,0.24378762,42201.0,42193.0,0.00048788]
[1644674769502,0.24378762,42201.0,42192.0,0.03018544]
[1644674769699,0.24378762,42201.0,42193.0,0.00048789]
[1644674770748,0.24378762,42201.0,42192.0,0.03018544]
[1644674770949,0.24378762,42201.0,42193.0,0.00048789]
[1644674771349,0.20714528,42195.0,42193.0,0.00048789]
[1644674771949,0.20714528,42195.0,42192.0,0.03048788]
[1644674772351,0.23013294,42194.0,42192.0,0.03048788]
[1644674772760,0.07198705,42192.0,42184.0,0.00018544]
[1644674772953,0.03155,42190.0,42187.0,0.00018544]
[1644674773151,0.20203045,42188.0,42183.0,0.00118544]
[1644674773352,0.20203045,42188.0,42183.0,0.001]
[1644674773552,0.2740863,42187.0,42183.0,0.001]
[1644674773815,0.48572263,42187.0,42183.0,0.001]